fUSD/lending_fUSD_20260521
["ID","MTS","AMOUNT","RATE_DAILY","PERIOD"]
[422748307,1779348641000,-3522.26,0.00014,2]
[422748309,1779348641000,-3522.26,0.00014,2]
[422748336,1779348641000,-150.0,0.0001485,2]
[422748332,1779348641000,-157.92,0.00014653,2]
[422748342,1779348641000,-150.0,0.00014986,2]
[422748375,1779348641000,-500.0,0.00015,2]
[422748369,1779348641000,-500.0,0.00015,2]
[422748374,1779348641000,-500.0,0.00015,2]
[422748377,1779348641000,-500.0,0.00015,2]
[422748372,1779348641000,-500.0,0.00015,2]
[422748376,1779348641000,-500.0,0.00015,2]
[422748382,1779348641000,-500.0,0.00015,2]
[422748383,1779348641000,-500.0,0.00015,2]
[422748385,1779348641000,-500.0,0.00015,2]
[422748386,1779348641000,-500.0,0.00015,2]
[422748387,1779348641000,-500.0,0.00015,2]
[422748338,1779348641000,-151.0,0.000149,2]
[422748384,1779348641000,-500.0,0.00015,2]
[422748371,1779348641000,-500.0,0.00015,2]
[422748389,1779348641000,-500.0,0.00015,2]
[422748391,1779348641000,-500.0,0.00015,2]
[422748390,1779348641000,-500.0,0.00015,2]
[422748394,1779348641000,-500.0,0.00015,2]
[422748397,1779348641000,-500.0,0.00015,2]
[422748399,1779348641000,-500.0,0.00015,2]
[422748393,1779348641000,-500.0,0.00015,2]
[422748396,1779348641000,-500.0,0.00015,2]
[422748403,1779348641000,-500.0,0.00015,2]
[422748395,1779348641000,-500.0,0.00015,2]
[422748400,1779348641000,-500.0,0.00015,2]
[422748398,1779348641000,-500.0,0.00015,2]
[422748401,1779348641000,-500.0,0.00015,2]
[422748402,1779348641000,-500.0,0.00015,2]
[422748392,1779348641000,-500.0,0.00015,2]
[422748379,1779348641000,-500.0,0.00015,2]
[422748388,1779348641000,-500.0,0.00015,2]
[422748373,1779348641000,-500.0,0.00015,2]
[422748344,1779348641000,-150.0,0.00014986,2]
[422748381,1779348641000,-500.0,0.00015,2]
[422748346,1779348641000,-763.1392519,0.0001499,2]
[422748339,1779348641000,-151.0,0.000149,2]
[422748349,1779348641000,-725.26987649,0.00015,2]
[422748348,1779348641000,-150.0,0.00014999,2]
[422748350,1779348641000,-349700.19707147,0.00015,2]
[422748352,1779348641000,-500.0,0.00015,2]
[422748354,1779348641000,-500.0,0.00015,2]
[422748351,1779348641000,-593777.89360055,0.00015,2]
[422748355,1779348641000,-500.0,0.00015,2]
[422748356,1779348641000,-500.0,0.00015,2]
[422748357,1779348641000,-500.0,0.00015,2]
[422748353,1779348641000,-500.0,0.00015,2]
[422748360,1779348641000,-500.0,0.00015,2]
[422748378,1779348641000,-500.0,0.00015,2]
[422748361,1779348641000,-500.0,0.00015,2]
[422748370,1779348641000,-500.0,0.00015,2]
[422748365,1779348641000,-500.0,0.00015,2]
[422748364,1779348641000,-500.0,0.00015,2]
[422748363,1779348641000,-500.0,0.00015,2]
[422748366,1779348641000,-500.0,0.00015,2]
[422748380,1779348641000,-500.0,0.00015,2]
[422748368,1779348641000,-500.0,0.00015,2]
[422748367,1779348641000,-500.0,0.00015,2]
[422748359,1779348641000,-500.0,0.00015,2]
[422748358,1779348641000,-500.0,0.00015,2]
[422748362,1779348641000,-500.0,0.00015,2]
[422748438,1779348642000,-151.0,0.00015,2]
[422748436,1779348642000,-152.191874,0.00015,2]
[422748444,1779348642000,-300.105514,0.00015,2]
[422748443,1779348642000,-300.105514,0.00015,2]
[422748440,1779348642000,-151.0,0.00015,2]
[422748441,1779348642000,-300.105514,0.00015,2]
[422748442,1779348642000,-300.105514,0.00015,2]
[422748446,1779348642000,-300.105514,0.00015,2]
[422748439,1779348642000,-151.0,0.00015,2]
[422748437,1779348642000,-151.0,0.00015,2]
[422748448,1779348642000,-300.105514,0.00015,2]
[422748445,1779348642000,-300.105514,0.00015,2]
[422748449,1779348642000,-152.500817,0.00015,2]
[422748462,1779348642000,-151.0,0.00015068,2]
[422748454,1779348642000,-151.0,0.00015,2]
[422748450,1779348642000,-151.0,0.00015,2]
[422748451,1779348642000,-151.0,0.00015,2]
[422748453,1779348642000,-151.0,0.00015,2]
[422748452,1779348642000,-151.0,0.00015,2]
[422748455,1779348642000,-210.27545,0.00015,2]
[422748457,1779348642000,-151.0,0.00015068,2]
[422748456,1779348642000,-2000.0,0.00015048,2]
[422748458,1779348642000,-151.0,0.00015068,2]
[422748460,1779348642000,-151.0,0.00015068,2]
[422748461,1779348642000,-151.0,0.00015068,2]
[422748467,1779348642000,-685.58487795,0.00015275,2]
[422748435,1779348642000,-206.786591,0.00015,2]
[422748447,1779348642000,-300.105514,0.00015,2]
[422748430,1779348642000,-151.0,0.00015,2]
[422748466,1779348642000,-725.26987649,0.000152,2]
[422748432,1779348642000,-151.0,0.00015,2]
[422748405,1779348642000,-500.0,0.00015,2]
[422748404,1779348642000,-500.0,0.00015,2]
[422748407,1779348642000,-500.0,0.00015,2]
[422748406,1779348642000,-500.0,0.00015,2]
[422748408,1779348642000,-500.0,0.00015,2]
[422748409,1779348642000,-500.0,0.00015,2]
[422748414,1779348642000,-500.0,0.00015,2]
[422748412,1779348642000,-500.0,0.00015,2]
[422748415,1779348642000,-500.0,0.00015,2]
[422748411,1779348642000,-500.0,0.00015,2]
[422748421,1779348642000,-500.0,0.00015,2]
[422748410,1779348642000,-500.0,0.00015,2]
[422748420,1779348642000,-500.0,0.00015,2]
[422748431,1779348642000,-151.0,0.00015,2]
[422748413,1779348642000,-500.0,0.00015,2]
[422748416,1779348642000,-500.0,0.00015,2]
[422748417,1779348642000,-500.0,0.00015,2]
[422748418,1779348642000,-500.0,0.00015,2]
[422748423,1779348642000,-500.0,0.00015,2]
[422748426,1779348642000,-151.0,0.00015,2]
[422748425,1779348642000,-418.80389,0.00015,2]
[422748434,1779348642000,-151.0,0.00015,2]
[422748433,1779348642000,-151.0,0.00015,2]
[422748422,1779348642000,-500.0,0.00015,2]
[422748427,1779348642000,-151.0,0.00015,2]
[422748429,1779348642000,-154.592185,0.00015,2]
[422748424,1779348642000,-500.0,0.00015,2]
[422748428,1779348642000,-151.0,0.00015,2]
[422748419,1779348642000,-500.0,0.00015,2]
[422748463,1779348642000,-151.0,0.00015068,2]
[422748519,1779348642000,-153.39579,0.00015375,2]
[422748464,1779348642000,-160.862936,0.00015068,2]
[422748497,1779348642000,-21502.2527356,0.00015375,2]
[422748498,1779348642000,-301896.7541666,0.00015375,2]
[422748503,1779348642000,-151.0,0.00015375,2]
[422748499,1779348642000,-489.7000472,0.00015375,2]
[422748506,1779348642000,-151.0,0.00015375,2]
[422748505,1779348642000,-2228.154995,0.00015375,2]
[422748500,1779348642000,-327.3407496,0.00015375,2]
[422748502,1779348642000,-151.0,0.00015375,2]
[422748504,1779348642000,-151.0,0.00015375,2]
[422748501,1779348642000,-151.0,0.00015375,2]
[422748509,1779348642000,-25597.224188,0.00015375,2]
[422748511,1779348642000,-300.105514,0.00015375,2]
[422748512,1779348642000,-300.105514,0.00015375,2]
[422748507,1779348642000,-151.0,0.00015375,2]
[422748514,1779348642000,-300.105514,0.00015375,2]
[422748520,1779348642000,-157.92,0.00015385,2]
[422748510,1779348642000,-300.105514,0.00015375,2]
[422748516,1779348642000,-300.105514,0.00015375,2]
[422748518,1779348642000,-235.293687,0.00015375,2]
[422748517,1779348642000,-300.105513,0.00015375,2]
[422748515,1779348642000,-300.105514,0.00015375,2]
[422748522,1779348642000,-725.26987649,0.000155,2]
[422748521,1779348642000,-192.15,0.000154,2]
[422748524,1779348642000,-7798.87221343,0.00015724,2]
[422748523,1779348642000,-725.26987649,0.000156,2]
[422748527,1779348642000,-2626.98788334,0.00015995,2]
[422748526,1779348642000,-1493.05,0.0001597,2]
[422748465,1779348642000,-2351.0,0.00015117,2]
[422748513,1779348642000,-300.105514,0.00015375,2]
[422748496,1779348642000,-129533.266172,0.00015375,2]
[422748525,1779348642000,-9602.59612673,0.00015724,2]
[422748494,1779348642000,-689451.6326231,0.00015375,2]
[422748470,1779348642000,-201.34257486,0.00015275,2]
[422748508,1779348642000,-151.0,0.00015375,2]
[422748469,1779348642000,-201.55027715,0.00015275,2]
[422748459,1779348642000,-151.0,0.00015068,2]
[422748483,1779348642000,-151.0,0.00015342,2]
[422748472,1779348642000,-725.26987649,0.000153,2]
[422748482,1779348642000,-300.105514,0.00015342,2]
[422748473,1779348642000,-151.0,0.00015342,2]
[422748475,1779348642000,-151.0,0.00015342,2]
[422748481,1779348642000,-300.105514,0.00015342,2]
[422748477,1779348642000,-151.0,0.00015342,2]
[422748471,1779348642000,-339.1889,0.00015275,2]
[422748476,1779348642000,-151.0,0.00015342,2]
[422748474,1779348642000,-151.0,0.00015342,2]
[422748468,1779348642000,-4316.64587352,0.00015275,2]
[422748479,1779348642000,-300.105514,0.00015342,2]
[422748480,1779348642000,-300.105514,0.00015342,2]
[422748492,1779348642000,-1831.76,0.00015374,2]
[422748491,1779348642000,-1831.76,0.00015374,2]
[422748493,1779348642000,-2328.8501623,0.00015375,2]
[422748488,1779348642000,-500.0,0.00015374,2]
[422748495,1779348642000,-5906.4787401,0.00015375,2]
[422748490,1779348642000,-151.0,0.00015374,2]
[422748489,1779348642000,-500.0,0.00015374,2]
[422748478,1779348642000,-234.779524,0.00015342,2]
[422748487,1779348642000,-544.63,0.00015374,2]
[422748485,1779348642000,-35269.0,0.00015342,2]
[422748484,1779348642000,-151.0,0.00015342,2]
[422748486,1779348642000,-544.63,0.00015374,2]
[422748560,1779348643000,-7798.87221343,0.0001734,2]
[422748562,1779348643000,-194.076611,0.00017373,2]
[422748567,1779348643000,-478.9,0.00017422,2]
[422748559,1779348643000,-150.0,0.00017164,2]
[422748568,1779348643000,-478.5,0.00017423,2]
[422748565,1779348643000,-478.96,0.00017385,2]
[422748564,1779348643000,-243.466459,0.00017373,2]
[422748566,1779348643000,-478.96,0.00017418,2]
[422748569,1779348643000,-171.40622784,0.00017438,2]
[422748558,1779348643000,-185.723106,0.00016993,2]
[422748582,1779348643000,-478.5,0.0001771,2]
[422748581,1779348643000,-478.5,0.00017655,2]
[422748577,1779348643000,-157.92,0.00017583,2]
[422748570,1779348643000,-478.96,0.00017495,2]
[422748572,1779348643000,-478.5,0.00017495,2]
[422748576,1779348643000,-478.5,0.00017572,2]
[422748583,1779348643000,-478.96,0.00017714,2]
[422748574,1779348643000,-934.0,0.00017503,2]
[422748580,1779348643000,-478.5,0.0001764,2]
[422748579,1779348643000,-478.96,0.00017601,2]
[422748575,1779348643000,-478.96,0.00017537,2]
[422748585,1779348643000,-544.63,0.00017727,2]
[422748557,1779348643000,-162.599653,0.00016993,2]
[422748595,1779348643000,-1542.0,0.00017728,2]
[422748578,1779348643000,-192.15,0.000176,2]
[422748555,1779348643000,-209.601113,0.00016993,2]
[422748536,1779348643000,-151.0,0.00016438,2]
[422748554,1779348643000,-157.71634176,0.00016946,2]
[422748584,1779348643000,-328.0,0.00017716,2]
[422748532,1779348643000,-500.0,0.00016342,2]
[422748530,1779348643000,-736.0,0.00016091,2]
[422748528,1779348643000,-300.0,0.00016,2]
[422748529,1779348643000,-500.0,0.00016068,2]
[422748531,1779348643000,-157.92,0.00016118,2]
[422748534,1779348643000,-151.0,0.00016438,2]
[422748535,1779348643000,-151.0,0.00016438,2]
[422748533,1779348643000,-151.0,0.00016438,2]
[422748541,1779348643000,-151.0,0.00016438,2]
[422748544,1779348643000,-151.0,0.00016438,2]
[422748539,1779348643000,-151.0,0.00016438,2]
[422748540,1779348643000,-151.0,0.00016438,2]
[422748543,1779348643000,-151.0,0.00016438,2]
[422748545,1779348643000,-151.0,0.00016438,2]
[422748542,1779348643000,-151.0,0.00016438,2]
[422748537,1779348643000,-151.0,0.00016438,2]
[422748547,1779348643000,-500.0,0.00016616,2]
[422748546,1779348643000,-253.005592,0.00016438,2]
[422748556,1779348643000,-180.136265,0.00016993,2]
[422748548,1779348643000,-3292.0,0.00016628,2]
[422748549,1779348643000,-165.25,0.00016712,2]
[422748550,1779348643000,-202.32322676,0.00016737,2]
[422748551,1779348643000,-157.92,0.0001685,2]
[422748552,1779348643000,-500.0,0.0001689,2]
[422748553,1779348643000,-501.0,0.00016932,2]
[422748586,1779348643000,-500.0,0.00017727,2]
[422748561,1779348643000,-9602.59612673,0.0001734,2]
[422748597,1779348643000,-1542.0,0.00017728,2]
[422748627,1779348643000,-500.0,0.00017808,2]
[422748625,1779348643000,-573.01581068,0.00017808,2]
[422748624,1779348643000,-500.0,0.00017808,2]
[422748623,1779348643000,-500.0,0.00017808,2]
[422748621,1779348643000,-500.0,0.00017808,2]
[422748626,1779348643000,-500.0,0.00017808,2]
[422748622,1779348643000,-500.0,0.00017808,2]
[422748633,1779348643000,-461.70568691,0.00017852,2]
[422748637,1779348643000,-478.96,0.00017911,2]
[422748629,1779348643000,-500.0,0.00017808,2]
[422748630,1779348643000,-500.0,0.00017808,2]
[422748638,1779348643000,-478.5,0.00017995,2]
[422748636,1779348643000,-478.58410632,0.00017911,2]
[422748639,1779348643000,-200.65445904,0.00018,2]
[422748632,1779348643000,-478.5,0.0001784,2]
[422748631,1779348643000,-478.9,0.00017814,2]
[422748634,1779348643000,-478.5,0.00017855,2]
[422748640,1779348643000,-208.57904866,0.00018,2]
[422748635,1779348643000,-27485.33821727,0.000179,2]
[422748641,1779348643000,-350.0,0.00018,2]
[422748643,1779348643000,-200.65445904,0.000182,2]
[422748645,1779348643000,-4609.0,0.00018291,2]
[422748646,1779348643000,-157.92,0.00018316,2]
[422748642,1779348643000,-478.91517088,0.00018191,2]
[422748588,1779348643000,-1831.76,0.00017727,2]
[422748620,1779348643000,-500.0,0.00017808,2]
[422748628,1779348643000,-500.0,0.00017808,2]
[422748644,1779348643000,-208.57904866,0.000182,2]
[422748618,1779348643000,-500.0,0.00017808,2]
[422748619,1779348643000,-500.0,0.00017808,2]
[422748599,1779348643000,-241.08335687,0.00017728,2]
[422748590,1779348643000,-698.72,0.00017728,2]
[422748594,1779348643000,-150.99,0.00017728,2]
[422748592,1779348643000,-5274.38,0.00017728,2]
[422748593,1779348643000,-9999.99,0.00017728,2]
[422748611,1779348643000,-500.0,0.00017808,2]
[422748601,1779348643000,-478.5,0.00017777,2]
[422748603,1779348643000,-478.96,0.00017799,2]
[422748600,1779348643000,-1493.05,0.00017744,2]
[422748602,1779348643000,-478.5,0.00017787,2]
[422748604,1779348643000,-600.0,0.00017804,2]
[422748596,1779348643000,-1542.0,0.00017728,2]
[422748610,1779348643000,-500.0,0.00017808,2]
[422748617,1779348643000,-500.0,0.00017808,2]
[422748605,1779348643000,-150.0,0.00017804,7]
[422748613,1779348643000,-500.0,0.00017808,2]
[422748615,1779348643000,-500.0,0.00017808,2]
[422748616,1779348643000,-500.0,0.00017808,2]
[422748598,1779348643000,-1638.93713639,0.00017728,2]
[422748612,1779348643000,-500.0,0.00017808,2]
[422748606,1779348643000,-500.0,0.00017808,2]
[422748609,1779348643000,-500.0,0.00017808,2]
[422748607,1779348643000,-500.0,0.00017808,2]
[422748614,1779348643000,-500.0,0.00017808,2]
[422748608,1779348643000,-500.0,0.00017808,2]
[422748721,1779348644000,-205.0,0.0002,2]
[422748717,1779348644000,-1296.0,0.0002,2]
[422748728,1779348644000,-437.0,0.0002,2]
[422748731,1779348644000,-2000.0,0.0002,7]
[422748727,1779348644000,-156.0,0.0002,2]
[422748725,1779348644000,-159.0,0.0002,2]
[422748730,1779348644000,-150.0,0.0002,10]
[422748732,1779348644000,-279.0,0.00020093,2]
[422748729,1779348644000,-157.0,0.0002,2]
[422748734,1779348644000,-150.0,0.00020093,2]
[422748742,1779348644000,-275.02024461,0.00020548,2]
[422748735,1779348644000,-216.0,0.00020093,2]
[422748751,1779348644000,-500.0,0.00020671,2]
[422748737,1779348644000,-159.88,0.00020093,2]
[422748743,1779348644000,-7798.87221343,0.0002057,2]
[422748747,1779348644000,-150.0,0.0002058,2]
[422748740,1779348644000,-774.4,0.00020381,2]
[422748741,1779348644000,-19039.71,0.00020548,2]
[422748749,1779348644000,-151.0,0.00020671,2]
[422748752,1779348644000,-200.0,0.00020671,2]
[422748726,1779348644000,-155.0,0.0002,2]
[422748755,1779348644000,-151.0,0.00020671,2]
[422748745,1779348644000,-9602.59612673,0.0002057,2]
[422748739,1779348644000,-6453.0,0.0002012,2]
[422748691,1779348644000,-160.96,0.00019628,2]
[422748719,1779348644000,-159.0,0.0002,2]
[422748754,1779348644000,-151.0,0.00020671,2]
[422748685,1779348644000,-537.0,0.00019457,2]
[422748682,1779348644000,-154.40903449,0.00019336,2]
[422748670,1779348644000,-151.0,0.00019178,2]
[422748672,1779348644000,-192.15,0.000192,2]
[422748674,1779348644000,-1283.232,0.0001924,2]
[422748671,1779348644000,-151.0,0.00019178,2]
[422748687,1779348644000,-2626.98788334,0.00019496,2]
[422748689,1779348644000,-1493.05,0.00019519,2]
[422748676,1779348644000,-285.321,0.0001924,2]
[422748724,1779348644000,-582.0,0.0002,2]
[422748695,1779348644000,-214.24,0.00019677,2]
[422748699,1779348644000,-216.78173938,0.00019726,2]
[422748701,1779348644000,-204.000443,0.00019771,2]
[422748703,1779348644000,-157.92,0.00019781,2]
[422748697,1779348644000,-180.65144949,0.00019726,2]
[422748705,1779348644000,-159.62998274,0.00019798,2]
[422748709,1779348644000,-1413.0,0.0002,2]
[422748707,1779348644000,-500.0,0.00019973,2]
[422748711,1779348644000,-400.0,0.0002,2]
[422748715,1779348644000,-324.0,0.0002,2]
[422748713,1779348644000,-157.0,0.0002,2]
[422748693,1779348644000,-637.08160968,0.00019665,2]
[422748758,1779348644000,-1734.62772924,0.00020671,2]
[422748783,1779348644000,-500.0,0.00020671,2]
[422748753,1779348644000,-151.0,0.00020671,2]
[422748787,1779348644000,-500.0,0.00020671,2]
[422748784,1779348644000,-151.0,0.00020671,2]
[422748786,1779348644000,-181.97501,0.00020671,2]
[422748782,1779348644000,-151.0,0.00020671,2]
[422748789,1779348644000,-151.0,0.00020671,2]
[422748792,1779348644000,-151.0,0.00020671,2]
[422748794,1779348644000,-151.0,0.00020671,2]
[422748791,1779348644000,-151.0,0.00020671,2]
[422748800,1779348644000,-151.0,0.00020671,2]
[422748803,1779348644000,-192.15,0.000209,2]
[422748785,1779348644000,-151.0,0.00020671,2]
[422748798,1779348644000,-151.0,0.00020671,2]
[422748793,1779348644000,-500.0,0.00020671,2]
[422748799,1779348644000,-151.0,0.00020671,2]
[422748797,1779348644000,-151.0,0.00020671,2]
[422748795,1779348644000,-151.0,0.00020671,2]
[422748796,1779348644000,-151.0,0.00020671,2]
[422748801,1779348644000,-151.0,0.00020671,2]
[422748804,1779348644000,-392.80374368,0.00020947,2]
[422748806,1779348644000,-500.0,0.00020999,3]
[422748807,1779348644000,-500.0,0.00020999,4]
[422748805,1779348644000,-500.0,0.00020999,2]
[422748802,1779348644000,-151.0,0.00020671,2]
[422748788,1779348644000,-151.0,0.00020671,2]
[422748781,1779348644000,-151.0,0.00020671,2]
[422748790,1779348644000,-500.0,0.00020671,2]
[422748764,1779348644000,-151.0,0.00020671,2]
[422748757,1779348644000,-151.0,0.00020671,2]
[422748756,1779348644000,-500.0,0.00020671,2]
[422748762,1779348644000,-151.0,0.00020671,2]
[422748761,1779348644000,-151.0,0.00020671,2]
[422748763,1779348644000,-500.0,0.00020671,2]
[422748760,1779348644000,-500.0,0.00020671,2]
[422748766,1779348644000,-500.0,0.00020671,2]
[422748776,1779348644000,-151.0,0.00020671,2]
[422748778,1779348644000,-151.0,0.00020671,2]
[422748777,1779348644000,-500.0,0.00020671,2]
[422748765,1779348644000,-151.0,0.00020671,2]
[422748767,1779348644000,-151.0,0.00020671,2]
[422748769,1779348644000,-151.0,0.00020671,2]
[422748768,1779348644000,-151.0,0.00020671,2]
[422748773,1779348644000,-151.0,0.00020671,2]
[422748775,1779348644000,-151.0,0.00020671,2]
[422748774,1779348644000,-500.0,0.00020671,2]
[422748770,1779348644000,-151.0,0.00020671,2]
[422748772,1779348644000,-151.0,0.00020671,2]
[422748771,1779348644000,-500.0,0.00020671,2]
[422748779,1779348644000,-151.0,0.00020671,2]
[422748780,1779348644000,-500.0,0.00020671,2]
[422748759,1779348644000,-318.29672751,0.00020671,2]
[422748669,1779348644000,-153.766364,0.00019178,2]
[422748680,1779348644000,-627.898,0.0001924,2]
[422748668,1779348644000,-151.0,0.00019178,2]
[422748678,1779348644000,-3634.0,0.0001924,2]
[422748649,1779348644000,-208.57904866,0.000184,2]
[422748650,1779348644000,-328.0,0.00018401,2]
[422748647,1779348644000,-3240.71,0.00018356,2]
[422748648,1779348644000,-200.65445904,0.000184,2]
[422748653,1779348644000,-208.57904866,0.000185,2]
[422748664,1779348644000,-9661.92,0.00019178,2]
[422748654,1779348644000,-208.57904866,0.000187,2]
[422748652,1779348644000,-151.0,0.0001843,2]
[422748651,1779348644000,-774.4,0.0001841,2]
[422748655,1779348644000,-329.24,0.0001872,2]
[422748658,1779348644000,-9602.59612673,0.00018955,2]
[422748657,1779348644000,-7798.87221343,0.00018955,2]
[422748656,1779348644000,-8090.86,0.0001872,2]
[422748659,1779348644000,-157.92,0.00019048,2]
[422748660,1779348644000,-328.0,0.00019086,2]
[422748661,1779348644000,-171.92,0.00019139,2]
[422748662,1779348644000,-183.31,0.00019139,2]
[422748666,1779348644000,-151.0,0.00019178,2]
[422748844,1779348645000,-324.0,0.00022,2]
[422748838,1779348645000,-151.0,0.00021918,2]
[422748843,1779348645000,-157.0,0.00022,2]
[422748847,1779348645000,-205.0,0.00022,2]
[422748842,1779348645000,-450.0,0.00022,2]
[422748849,1779348645000,-159.0,0.00022,2]
[422748840,1779348645000,-5000.0,0.00021918,2]
[422748850,1779348645000,-155.0,0.00022,2]
[422748841,1779348645000,-151.0,0.00021918,2]
[422748839,1779348645000,-151.0,0.00021918,2]
[422748845,1779348645000,-1296.0,0.00022,2]
[422748848,1779348645000,-582.0,0.00022,2]
[422748853,1779348645000,-171.0,0.00022,2]
[422748859,1779348645000,-6417.0,0.00022132,2]
[422748860,1779348645000,-7798.87221343,0.00022185,2]
[422748855,1779348645000,-2328.8501623,0.00022037,2]
[422748856,1779348645000,-5906.4787401,0.00022037,2]
[422748857,1779348645000,-1156.0,0.00022045,5]
[422748854,1779348645000,-763.1392519,0.00022028,2]
[422748858,1779348645000,-511.56,0.00022129,2]
[422748852,1779348645000,-437.0,0.00022,2]
[422748862,1779348645000,-2000.0,0.00022222,7]
[422748833,1779348645000,-275.02024461,0.00021613,2]
[422748863,1779348645000,-200.0,0.00022238,2]
[422748861,1779348645000,-9602.59612673,0.00022185,2]
[422748865,1779348645000,-150.0,0.0002224,2]
[422748851,1779348645000,-170.34451622,0.00022,2]
[422748832,1779348645000,-323.27706539,0.00021502,2]
[422748819,1779348645000,-1076.0,0.00021,2]
[422748835,1779348645000,-500.0,0.00021753,2]
[422748810,1779348645000,-1296.0,0.00021,2]
[422748808,1779348645000,-157.0,0.00021,2]
[422748813,1779348645000,-582.0,0.00021,2]
[422748809,1779348645000,-324.0,0.00021,2]
[422748811,1779348645000,-159.0,0.00021,2]
[422748812,1779348645000,-205.0,0.00021,2]
[422748814,1779348645000,-159.0,0.00021,2]
[422748815,1779348645000,-155.0,0.00021,2]
[422748825,1779348645000,-1798.80895522,0.00021219,2]
[422748817,1779348645000,-437.0,0.00021,2]
[422748816,1779348645000,-156.0,0.00021,2]
[422748826,1779348645000,-2427.02,0.00021273,2]
[422748836,1779348645000,-200.0,0.00021767,2]
[422748820,1779348645000,-329.0,0.00021172,7]
[422748822,1779348645000,-337.40177697,0.00021201,2]
[422748823,1779348645000,-1831.76,0.00021201,2]
[422748821,1779348645000,-544.63,0.00021201,2]
[422748824,1779348645000,-200.0,0.00021219,2]
[422748875,1779348645000,-156.587,0.00022459,2]
[422748827,1779348645000,-1530.02,0.00021273,2]
[422748837,1779348645000,-1865.36488656,0.00021767,2]
[422748829,1779348645000,-1493.05,0.00021293,2]
[422748828,1779348645000,-181.88,0.00021273,2]
[422748831,1779348645000,-367.18253353,0.00021502,2]
[422748830,1779348645000,-157.71634176,0.00021397,2]
[422748834,1779348645000,-152.0,0.00021622,7]
[422748818,1779348645000,-157.0,0.00021,2]
[422748864,1779348645000,-1271.0,0.0002224,2]
[422748846,1779348645000,-159.0,0.00022,2]
[422748866,1779348645000,-3634.0,0.0002224,2]
[422748900,1779348645000,-152.0,0.00022459,2]
[422748901,1779348645000,-152.0,0.00022459,2]
[422748910,1779348645000,-756.1,0.00022466,2]
[422748899,1779348645000,-1011.5182552,0.00022459,2]
[422748902,1779348645000,-152.0,0.00022459,2]
[422748908,1779348645000,-152.0,0.00022459,2]
[422748905,1779348645000,-152.0,0.00022459,2]
[422748909,1779348645000,-152.0,0.00022459,2]
[422748903,1779348645000,-152.0,0.00022459,2]
[422748904,1779348645000,-152.0,0.00022459,2]
[422748907,1779348645000,-152.0,0.00022459,2]
[422748906,1779348645000,-152.0,0.00022459,2]
[422748911,1779348645000,-1364.9,0.00022466,2]
[422748914,1779348645000,-151.0,0.00022514,2]
[422748913,1779348645000,-7205.56179437,0.00022514,2]